Cogmind - Beta 9.6 @@@ ROGUE MODE // 2020.05.06 @ 04:25:53 Player: cptwinky Result: Destroyed by MG-SMA(z) with Makeshift Shrapnel Gun Performance ------------- Evolutions (3) 1500 Regions Visited (12) 2400 Robots Destroyed (170) 850 Value Destroyed (5208) 5208 Prototype IDs (16) 320 Alien Tech Used (0) 0 Bonus (-268) -268 TOTAL SCORE: 10010 Bonus ------- High Alert Combat Kills 487 Follower Combat Kills 589 Met Imprinter 300 Friendly Fire -1644 Cogmind --------- Core Integrity 0/700 Matter 300/300 Energy 590/590 System Corruption 0% Temperature Cool (137) Movement Core (500) Ox9 Location -7/Zion Parts ------- > --- POWER (1) -------- Improved Deuterium Engine > --- PROPULSION (3) --- Improved Titanium Leg > --- UTILITY (7) ------ Compact Battery Experimental Optical Array Advanced Targeting Computer Advanced Targeting Computer Experimental Core Analyzer Weapon Cycler > --- WEAPON (2) ------- Plasma Cannon Enhanced Gauss Cannon > --- INVENTORY (4) ---- Light Angular Momentum Engine Riot Gun Power Maul Peak State ------------ > --- POWER ------------ Neutrino Core > --- PROPULSION ------- Heavy Treads Titanium Leg > --- UTILITY ---------- Improved Heat Sink Humpback Experimental Optical Array Experimental Targeting Computer Experimental Core Analyzer Improved Light Armor Plating > --- WEAPON ----------- Gauss Rifle Gauss Rifle > --- INVENTORY -------- Light Nuclear Core Micro Nuclear Core Light Angular Momentum Engine Heavy Treads Medium Storage Unit Medium Storage Unit Compact Battery Compact Battery YI-UF0's Bottomless Matter Pit Experimental Sensor Array Weapon Cycler Riot Gun EM Pulse Cannon Heavy Particle Cannon Plasma Cannon Heavy Plasma Cannon Battle Rifle Flak Gun Enhanced Gauss Cannon Improved Grenade Launcher Rocket Array Enhanced Flamer Power Maul [Rating: 69] Favorites ----------- Power Improved Deuterium Engine Engine Improved Deuterium Engine Power Core Neutrino Core Reactor Antimatter Reactor Propulsion Light Treads Treads Light Treads Leg Titanium Leg Wheel Compact Wheel Utility High-capacity Storage Unit Device Improved Heat Sink Storage High-capacity Storage Unit Processor Enhanced Optical Array Hackware System Shield Protection Improved Light Armor Plating Weapon Gatling Laser Energy Gun Gatling Laser Energy Cannon Advanced Beam Cannon Ballistic Gun Gauss Rifle Ballistic Cannon Enhanced Gauss Cannon Launcher Rocket Array Impact Weapon Mace Slashing Weapon Axe Build | -11 -10 -10 -10 -9 -8 -8 -7 -7 -7 -7 -7 -7 ------- Run | Scr Mat Min Exi Min Mat Sto Fac Was Fac Low Low Zio Slots Evolved 6 | . . . . . 4 . 2 . . . . . Power . | . . . . . . . . . . . . . Propulsion 1 | . . . . . 1 . . . . . . . Utility 5 | . . . . . 3 . 2 . . . . . Weapon . | . . . . . . . . . . . . . Parts Attached 183 | 7 3 5 4 2 31 28 7 11 33 12 15 25 Power 16 | 1 1 . . . 3 1 . 2 6 . 1 1 Engine 11 | 1 1 . . . 3 1 . 1 3 . . 1 Core 4 | . . . . . . . . . 3 . 1 . Reactor 1 | . . . . . . . . 1 . . . . Propulsion 36 | 2 2 1 . . 8 7 . 3 7 . 1 5 Treads 29 | 1 1 1 . . 7 7 . 3 5 . . 4 Leg 2 | . . . . . . . . . . . 1 1 Wheel 5 | 1 1 . . . 1 . . . 2 . . . Hover . | . . . . . . . . . . . . . Flight . | . . . . . . . . . . . . . Utility 62 | 2 . 3 4 . 9 5 6 3 13 5 2 10 Device 20 | . . . . . 2 2 4 1 4 3 2 2 Storage 15 | 2 . 3 4 . . 1 . . 2 1 . 2 Processor 11 | . . . . . 2 1 . 1 2 . . 5 Hackware 3 | . . . . . 1 . . . 2 . . . Protection 13 | . . . . . 4 1 2 1 3 1 . 1 Artifact . | . . . . . . . . . . . . . Weapon 69 | 2 . 1 . 2 11 15 1 3 7 7 11 9 Energy Gun 19 | . . . . . 7 9 . . . . 3 . Energy Cannon 5 | . . . . . . 1 1 . . 2 . 1 Ballistic Gun 23 | 2 . 1 . 2 2 . . 2 3 3 4 4 Ballistic Cannon 1 | . . . . . . . . . . . . 1 Launcher 13 | . . . . . 2 2 . . 1 2 3 3 Special Weapon . | . . . . . . . . . . . . . Impact Weapon 2 | . . . . . . 2 . . . . . . Slashing Weapon 6 | . . . . . . 1 . 1 3 . 1 . Piercing Weapon . | . . . . . . . . . . . . . Special Melee Weapon . | . . . . . . . . . . . . . Unidentified Prototypes 12 | . . 1 . . 4 3 . . 1 . . 3 Parts Lost 42 | . 1 . . . 6 5 1 4 9 1 6 9 Power 4 | . 1 . . . 1 . . . 1 . 1 . Propulsion 10 | . . . . . 3 1 . . 3 1 . 2 Utility 14 | . . . . . 1 1 . 2 3 . 3 4 Weapon 14 | . . . . . 1 3 1 2 2 . 2 3 Highest Loss Streak 5 | . 1 . . . 3 1 1 4 3 1 3 5 Average Slot Usage (%) 87 | . 100 100 100 100 96 99 99 72 80 71 77 81 Engine 6 | . 14 14 14 14 9 8 7 1 3 7 4 . Core 1 | . . . . . . . . . 2 . 2 6 Treads 13 | . 16 14 14 14 20 26 23 15 8 7 7 7 Leg 1 | . . . . . . . . . . . 6 5 Wheel 3 | . 11 14 14 14 6 . . . 4 . . . Device 13 | . . . . . 9 9 22 14 15 23 20 16 Storage 14 | . 28 28 28 28 18 18 23 13 11 7 7 6 Processor 7 | . . . . . 1 9 7 11 10 7 7 14 Hackware 1 | . . . . . 5 . . . 3 . . . Protection 4 | . . . . . 6 8 . . 5 1 4 5 Energy Gun 5 | . . . . . 14 17 13 3 . . 3 . Ballistic Gun 8 | . 28 28 28 28 3 . . . 1 14 11 14 Slashing Weapon 1 | . . . . . . . . 2 10 . . . Naked Turns . | . . . . . . . . . . . . . Heaviest Build 109 | 15 15 19 71 71 89 98 100 107 53 107 107 109 Greatest Support 98 | 16 16 16 16 16 62 62 60 90 90 70 70 98 Greatest Overweight (x) 8 | . . 1 4 4 8 1 1 4 3 1 1 1 Average Overweight (x) 1 | . . . 1 4 4 1 1 . . . 1 . Largest Inventory Capacity 28 | 8 8 10 20 20 20 26 26 26 12 28 24 24 Average Capacity 18 | 6 8 9 14 20 20 20 26 17 10 23 24 23 Most Carried 26 | 4 6 10 12 17 20 22 26 26 12 24 24 24 Average Carried 16 | 3 4 8 10 14 18 19 24 16 9 17 23 22 Final Capacity 26 | 8 8 10 20 20 20 26 26 4 12 24 24 4 Final Carried 25 | 4 6 10 11 16 20 22 25 4 12 24 22 3 Class Distribution -------------------- 51% | Hauler-Mutant 29% | Scavenger-Mutant 13% | Mutant 4% | Derelict-Mutant Dominant Class ---------------- Mutant | -10/Materials Mutant | -10/Mines Mutant | -10/Exiles Hauler-Mutant | -9/Mines Hauler-Mutant | -8/Materials Hauler-Mutant | -8/Storage Hauler-Mutant | -7/Factory Hauler-Mutant | -7/Waste Scavenger-Mutant | -7/Factory Hauler-Mutant | -7/Lower Caves Derelict-Mutant | -7/Lower Caves Scavenger-Mutant | -7/Zion Resources | -11 -10 -10 -10 -9 -8 -8 -7 -7 -7 -7 -7 -7 ----------- Run | Scr Mat Min Exi Min Mat Sto Fac Was Fac Low Low Zio Matter Collected 5108 | 294 180 234 . 258 689 1199 66 166 394 343 437 848 Remotely . | . . . . . . . . . . . . . Salvage Created 6763 | 95 135 107 . 101 1070 1434 66 717 1345 326 629 738 Parts 301 | 3 3 5 . 10 56 62 4 4 61 13 28 52 Haulers Intercepted 11 | . . . . . 3 5 . . 3 . . . Recyclers Shooed 1 | . 1 . . . . . . . . . . . Parts Field Recycled . | . . . . . . . . . . . . . Retrieved Matter . | . . . . . . . . . . . . . Parts Self-Destructed 30 | . . . . . . . . . . 11 19 . Prevented . | . . . . . . . . . . . . . Kills | -11 -10 -10 -10 -9 -8 -8 -7 -7 -7 -7 -7 -7 ------- Run | Scr Mat Min Exi Min Mat Sto Fac Was Fac Low Low Zio Combat Hostiles Destroyed 110 | . 3 . . 5 20 28 2 3 18 8 16 7 Melee 17 | . . . . . . . . . 17 . . . Guns 63 | . 3 . . 5 15 26 2 2 1 2 6 1 Cannons 2 | . . . . . . . . 1 . . . 1 AOE 28 | . . . . . 5 2 . . . 6 10 5 Classes Destroyed 19 | 1 1 . . 1 5 5 1 1 . . 1 3 Worker 5 | . . . . . 1 2 . . 2 . . . Builder 2 | . . . . . . 2 . . . . . . Hauler 11 | . . . . . 3 5 . . 3 . . . Recycler 3 | 1 . . . . . . . . 2 . . . Mechanic 1 | . . . . . . 1 . . . . . . Operator 2 | . . . . . . 1 . . 1 . . . Watcher 3 | . . . . . 2 1 . . . . . . Swarmer 22 | . . . . 4 . 4 . . . 7 7 . Grunt 44 | . 3 . . 1 16 11 . . 10 . 3 . Brawler 1 | . . . . . . . . . . . 1 . Duelist 4 | . . . . . 1 2 . . 1 . . . Sentry 14 | . . . . . 4 7 . . 3 . . . Demolisher 2 | . . . . . . 2 . . . . . . Hunter 6 | . . . . . . 2 . . 3 . 1 . Programmer 4 | . . . . . . . 2 . 1 1 . . Compactor 3 | . . . . . . . . 3 . . . . Zionite 25 | . . . . . . . . . . . . 25 Packrat 1 | . . . . . . . . . . 1 . . Tinkerer 4 | . . . . . . . . . . . . 4 Surgeon 1 | . . . . . . . . . . . . 1 Thug 5 | . . . . . . . . . . . 4 1 Mutant 5 | . . . . . . . . . . . . 5 Best Kill Streak 18 | 1 2 . . 4 4 6 1 2 4 3 4 18 Combat Bots Only 5 | . 2 . . 4 4 5 1 2 2 3 4 4 Max Kills in Single Turn 4 | 1 1 1 . 1 2 3 1 1 1 3 4 3 Gunslinging 1 | . . . . . . 1 . . . . . . Exploded 4 | . . . . . 2 1 . . . 3 4 2 Melee 1 | . . . . . . . . . 1 . . . Uniques/NPCs Destroyed 1 | . . 1 . . . . . . . . . . YI-UF0 (-10/Mines) 12-ASH (-7/Zion) Combat | -11 -10 -10 -10 -9 -8 -8 -7 -7 -7 -7 -7 -7 -------- Run | Scr Mat Min Exi Min Mat Sto Fac Was Fac Low Low Zio Damage Taken 8507 | . 401 . . 270 1015 1464 116 308 2044 272 924 1693 Core 1115 | . 88 . . 67 93 153 14 44 301 9 111 235 Absorbed by Shields . | . . . . . . . . . . . . . Core Remaining (%) 64 | 100 . . . 38 . 55 . . . . . . Volleys Fired 379 | 12 25 23 . 19 47 87 5 31 8 26 26 70 Largest 2 | 2 2 2 . 2 2 2 2 2 2 2 2 2 Hottest 160 | 40 40 40 . 40 160 160 160 148 56 90 150 137 Shots Fired 703 | 24 50 46 . 38 90 169 10 57 13 45 48 113 Gun 628 | 24 50 46 . 38 86 164 9 28 13 38 44 88 Cannon 49 | . . . . . . . 1 29 . 5 . 14 Launcher 26 | . . . . . 4 5 . . . 2 4 11 Special . | . . . . . . . . . . . . . Kinetic 359 | 24 50 46 . 38 8 . . 4 13 38 38 100 Thermal 318 | . . . . . 78 164 10 53 . 5 6 2 Explosive 26 | . . . . . 4 5 . . . 2 4 11 Electromagnetic . | . . . . . . . . . . . . . Robot Hit Streak 24 | 3 12 10 . 16 17 18 12 24 10 7 8 20 Robot Miss Streak 10 | 2 2 3 . 4 3 10 2 2 2 2 4 3 Penetration Max 1 | . . . . . . . . . . . . 1 Secondary Targets 10 | . 1 . . . 1 3 . . . . 2 3 Max Gunslinging Chain 1 | . 1 . . . 1 1 . . . . 1 1 Shots Hit Robots 641 | 16 35 33 . 26 81 154 10 52 93 21 37 83 Core Hits 392 | 4 10 11 . 10 62 91 7 22 36 15 45 79 Critical Hits 12 | . 1 . . . . . . 5 2 . . 4 Critical Kills 2 | . 1 . . . . . . 1 . . . . Critical Parts Destroyed 7 | . . . . . . . . 2 2 . . 3 Melee Attacks 144 | . . . . . . 4 . . 140 . . . Impact 3 | . . . . . . 3 . . . . . . Slashing 141 | . . . . . . 1 . . 140 . . . Piercing . | . . . . . . . . . . . . . Sneak Attacks 7 | . . . . . . . . . 7 . . . Combat Hostiles 1 | . . . . . . . . . 1 . . . Follow-up Attacks 2 | . . . . . . . . . 2 . . . Damage Inflicted 16051 | 132 322 330 . 179 1814 3049 226 1366 3544 701 1369 3019 Guns 8532 | 132 322 330 . 179 1409 2557 200 774 233 456 635 1305 Cannons 956 | . . . . . . . 26 592 . . . 338 Explosions 3241 | . . . . . 405 481 . . . 245 734 1376 Melee 3311 | . . . . . . . . . 3311 . . . Ramming 11 | . . . . . . 11 . . . . . . Kinetic 3933 | 132 322 330 . 179 26 . . 46 233 456 593 1616 Thermal 5555 | . . . . . 1383 2557 226 1320 . . 42 27 Explosive 3241 | . . . . . 405 481 . . . 245 734 1376 Electromagnetic . | . . . . . . . . . . . . . Impact . | . . . . . . . . . . . . . Slashing 3311 | . . . . . . . . . 3311 . . . Piercing . | . . . . . . . . . . . . . Highest Corruption 4 | . . . . . . . 2 2 4 4 4 4 Average Corruption 3 | . . . . . . . 1 2 3 4 4 4 Corruption Purged 2 | . . . . . . . . . 2 . . . Effects 65 | . . . . . . . 1 4 21 14 23 2 Message Errors 16 | . . . . . . . . . 6 4 6 . Matter Fused 14 | . . . . . . . . . 4 3 7 . Heat Flow Errors 5 | . . . . . . . . . . 1 2 2 Energy Discharges 15 | . . . . . . . 1 2 4 5 3 . Data Loss (minor) 11 | . . . . . . . . 1 4 1 5 . Targeting Errors 4 | . . . . . . . . 1 3 . . . Overload Shots . | . . . . . . . . . . . . . Overflow Damage 256 | . . . . . . 3 . . 236 . . 17 Projectiles 2 | . . . . . . . . . . . . 2 Explosions 18 | . . . . . . 3 . . . . . 15 Melee 236 | . . . . . . . . . 236 . . . Knockbacks 3 | . . . . . . . . . . . . 3 Impact . | . . . . . . . . . . . . . Kinetic 3 | . . . . . . . . . . . . 3 Secondary . | . . . . . . . . . . . . . Self-Inflicted Damage 195 | . . . . . 16 31 . . . 44 50 54 Shots 13 | . . . . . 1 4 . . . 3 2 3 Rammed 2 | . . . . . . 2 . . . . . . Targets Rammed 2 | . . . . . . 2 . . . . . . Kicked . | . . . . . . . . . . . . . Crushed . | . . . . . . . . . . . . . Highest Temperature 216 | . 50 . . 12 178 216 30 24 1 120 145 144 Average Temperature 45 | . 27 . . 7 59 54 10 9 1 69 87 27 Received Heat Transfer 2142 | . 228 . . 42 468 396 . . 630 . 261 117 Siege Activations 1 | . . . . . . . . . . . . 1 Total Turns 25 | . . . . . . . . . . . . 25 Longest Duration 25 | . . . . . . . . . . . . 25 Robots Corrupted . | . . . . . . . . . . . . . Combat Hostiles . | . . . . . . . . . . . . . Parts Fried . | . . . . . . . . . . . . . Impact Corruptions . | . . . . . . . . . . . . . Robots Melted 1 | . . . . . 1 . . . . . . . Combat Hostiles . | . . . . . . . . . . . . . Parts Melted 22 | . . . . . 4 14 3 . . . . 1 Heat Transferred 12017 | . . . . . 3125 5633 412 2723 . . 74 50 Parts Sabotaged . | . . . . . . . . . . . . . Parts Stolen . | . . . . . . . . . . . . . Parts Stripped . | . . . . . . . . . . . . . Power Chain Reactions . | . . . . . . . . . . . . . Missiles Intercepted . | . . . . . . . . . . . . . Alert | -11 -10 -10 -10 -9 -8 -8 -7 -7 -7 -7 -7 -7 ------- Run | Scr Mat Min Exi Min Mat Sto Fac Was Fac Low Low Zio Peak Influence 1010 | 5 92 81 . 110 442 712 353 10 1010 . . . Average Influence 273 | . 72 40 . 25 194 472 190 5 392 . . . Maximum Alert Level 3 | . . . . . 2 3 1 . 3 . . . Low Security (%) 46 | 100 100 100 . 100 48 8 42 100 32 . . . Level 1 31 | . . . . . 49 28 57 . 35 . . . Level 2 13 | . . . . . 2 60 . . . . . . Level 3 9 | . . . . . . 2 . . 31 . . . Level 4 . | . . . . . . . . . . . . . Level 5 . | . . . . . . . . . . . . . High Security . | . . . . . . . . . . . . . Max Security . | . . . . . . . . . . . . . Squads Dispatched 27 | . 1 . . . 5 10 2 . 9 . . . Investigation 8 | . . . . . 2 3 . . 3 . . . Extermination 4 | . . . . . . . 2 . 2 . . . Reinforcement 10 | . 1 . . . 2 4 . . 3 . . . Assault 4 | . . . . . . 3 . . 1 . . . Garrison 1 | . . . . . 1 . . . . . . . Intercept . | . . . . . . . . . . . . . Construction Impeded . | . . . . . . . . . . . . . Haulers Reinforced 1 | . . . . . . . . . 1 . . . Stealth | -11 -10 -10 -10 -9 -8 -8 -7 -7 -7 -7 -7 -7 --------- Run | Scr Mat Min Exi Min Mat Sto Fac Was Fac Low Low Zio Distress Signals 5 | . . . . . 1 3 . . 1 . . . Communications Jammed 4 | . . . . . . . . . 4 . . . Distress Signals 4 | . . . . . . . . . 4 . . . Times Spotted 231 | . 9 . . 5 36 63 3 7 45 5 16 42 Peak Tracking Total 8 | . 3 . . 4 6 6 2 3 7 3 4 8 Tactical Retreats 16 | . . . . . . 4 . 2 6 . . 4 Traps | -11 -10 -10 -10 -9 -8 -8 -7 -7 -7 -7 -7 -7 ------- Run | Scr Mat Min Exi Min Mat Sto Fac Was Fac Low Low Zio Traps Triggered 7 | . . . . . 2 2 1 . 2 . . . Indirectly . | . . . . . . . . . . . . . Trap Hack Attempts . | . . . . . . . . . . . . . Triggered . | . . . . . . . . . . . . . Disarmed . | . . . . . . . . . . . . . Reprogrammed . | . . . . . . . . . . . . . Reused . | . . . . . . . . . . . . . Traps Extracted . | . . . . . . . . . . . . . Installed . | . . . . . . . . . . . . . Triggered . | . . . . . . . . . . . . . Machines | -11 -10 -10 -10 -9 -8 -8 -7 -7 -7 -7 -7 -7 ---------- Run | Scr Mat Min Exi Min Mat Sto Fac Was Fac Low Low Zio Machines Disabled 8 | . . . . . 1 4 . . 1 . . 2 Max in Single Turn 1 | . . . . . 1 1 . . 1 . . 1 Garrison Access 2 | . . . . . 1 . . . 1 . . . Machines Sabotaged . | . . . . . . . . . . . . . Garrisons Compromised . | . . . . . . . . . . . . . Overloaded Fab Kills . | . . . . . . . . . . . . . Fab Network Shutdowns 1 | . . . . . . . . . 1 . . . Hacking | -11 -10 -10 -10 -9 -8 -8 -7 -7 -7 -7 -7 -7 --------- Run | Scr Mat Min Exi Min Mat Sto Fac Was Fac Low Low Zio Machines Accessed 38 | . 1 . 1 . 9 8 4 . 14 . . 1 Terminals 16 | . 1 . . . 6 4 3 . 2 . . . Fabricators 3 | . . . . . . . . . 3 . . . Repair Stations 4 | . . . . . . 2 . . 2 . . . Recycling Units 6 | . . . . . 1 2 1 . 2 . . . Scanalyzers 4 | . . . . . 1 . . . 3 . . . Garrison Access 3 | . . . . . 1 . . . 2 . . . Total Hacks 101 | . 2 . 1 . 26 22 6 . 40 . . 4 Successful 57 | . 2 . 1 . 12 14 1 . 23 . . 4 Failed 44 | . . . . . 14 8 5 . 17 . . . Catastrophic 7 | . . . . . 3 1 2 . 1 . . . Database Lockouts . | . . . . . . . . . . . . . Manual 45 | . 1 . . . 14 12 4 . 14 . . . Terminals 44 | . 2 . . . 16 12 4 . 10 . . . Fabricators 7 | . . . . . . . . . 7 . . . Repair Stations 12 | . . . . . . 6 . . 6 . . . Recycling Units 13 | . . . . . 3 4 2 . 4 . . . Scanalyzers 12 | . . . . . 3 . . . 9 . . . Garrison Access 8 | . . . . . 4 . . . 4 . . . Terminal Hacks 18 | . 1 . 1 . 6 2 1 . 3 . . 4 Record 1 | . . . 1 . . . . . . . . . Part Schematic 4 | . . . . . . . . . . . . 4 Prototype ID Bank 1 | . . . . . 1 . . . . . . . Open Door 1 | . . . . . . 1 . . . . . . Branch Access Points 1 | . . . . . . . . . 1 . . . Terminal Index 1 | . . . . . . . . . 1 . . . Scanalyzer Index 2 | . . . . . 1 . . . 1 . . . Alert Level 1 | . 1 . . . . . . . . . . . Unreport Threat 4 | . . . . . 2 1 1 . . . . . Zone Layout 2 | . . . . . 2 . . . . . . . Fabricator Hacks 4 | . . . . . . . . . 4 . . . Load Schematic 2 | . . . . . . . . . 2 . . . Build 2 | . . . . . . . . . 2 . . . Repair Station Hacks 9 | . . . . . . 6 . . 3 . . . Scan Component 5 | . . . . . . 3 . . 2 . . . Repair 4 | . . . . . . 3 . . 1 . . . Recycling Unit Hacks 4 | . . . . . . 2 . . 2 . . . Retrieve Components 4 | . . . . . . 2 . . 2 . . . Scanalyzer 7 | . . . . . 2 . . . 5 . . . Insert Component 4 | . . . . . 1 . . . 3 . . . Analyze 3 | . . . . . 1 . . . 2 . . . Garrison Access Hacks . | . . . . . . . . . . . . . Unauthorized Hacks 15 | . 1 . . . 4 4 . . 6 . . . Terminals 6 | . 1 . . . 1 3 . . 1 . . . Track 2 | . . . . . . 1 . . 1 . . . Botnet 4 | . 1 . . . 1 2 . . . . . . Fabricators 1 | . . . . . . . . . 1 . . . Prioritize 1 | . . . . . . . . . 1 . . . Repair Stations . | . . . . . . . . . . . . . Recycling Units 3 | . . . . . 1 1 . . 1 . . . Mask 1 | . . . . . . . . . 1 . . . Tunnel 2 | . . . . . 1 1 . . . . . . Scanalyzers . | . . . . . . . . . . . . . Garrison Access 5 | . . . . . 2 . . . 3 . . . Reprogram 3 | . . . . . 1 . . . 2 . . . Jam 2 | . . . . . 1 . . . 1 . . . Data Cores Recovered . | . . . . . . . . . . . . . Used . | . . . . . . . . . . . . . Hacking Detections 33 | . . . . . 9 7 4 . 13 . . . Full Trace Events 5 | . . . . . 1 2 . . 2 . . . Feedback Events 1 | . . . . . . . . . 1 . . . Corruption 1 | . . . . . . . . . 1 . . . Feedback Blocked . | . . . . . . . . . . . . . Robot Schematics Acquired . | . . . . . . . . . . . . . Robots Built . | . . . . . . . . . . . . . Matter . | . . . . . . . . . . . . . Time . | . . . . . . . . . . . . . Total Robot Build Rating . | . . . . . . . . . . . . . Part Schematics Acquired 7 | . . . . . 1 . . . 2 . . 4 Parts Built 3 | . . . . . . . . . 3 . . . Matter 497 | . . . . . . . . . 497 . . . Time 258 | . . . . . . . . . 258 . . . Total Part Build Rating 17 | . . . . . . . . . 17 . . . Parts Repaired 4 | . . . . . . 3 . . 1 . . . Time 170 | . . . . . . 152 . . 18 . . . Parts Recycled . | . . . . . . . . . . . . . Recycled Matter . | . . . . . . . . . . . . . Retrieved Matter . | . . . . . . . . . . . . . Retrieved Components 11 | . . . . . . 9 . . 2 . . . Parts Scanalyzed 3 | . . . . . 1 . . . 2 . . . Part Schematics Acquired 3 | . . . . . 1 . . . 2 . . . Parts Damaged 1 | . . . . . 1 . . . . . . . Bothacking | -11 -10 -10 -10 -9 -8 -8 -7 -7 -7 -7 -7 -7 ------------ Run | Scr Mat Min Exi Min Mat Sto Fac Was Fac Low Low Zio Used RIF Installer . | . . . . . . . . . . . . . Robots Hacked . | . . . . . . . . . . . . . Non-combat . | . . . . . . . . . . . . . Combat . | . . . . . . . . . . . . . Robot Hacks Applied . | . . . . . . . . . . . . . Relay Couplers Released . | . . . . . . . . . . . . . Robots Rewired . | . . . . . . . . . . . . . Allies Hacked . | . . . . . . . . . . . . . Hacks Repelled . | . . . . . . . . . . . . . Allies | -11 -10 -10 -10 -9 -8 -8 -7 -7 -7 -7 -7 -7 -------- Run | Scr Mat Min Exi Min Mat Sto Fac Was Fac Low Low Zio Total Allies 20 | . . 3 . . 2 12 . . 3 . . . Largest Group 10 | . . 3 3 3 2 10 . . 3 . . . Highest-Rated Group 173 | . . 40 40 40 30 173 . . 59 . . . Highest-Rated Ally 31 | . . 16 16 16 15 31 . . 27 . . . Total Orders 1 | . . 1 . . . . . . . . . . AID 1 | . . 1 . . . . . . . . . . Ally Attacks 130 | . . 6 . 7 29 86 . . 2 . . . Total Damage 1850 | . . 81 . 72 487 1192 . . 18 . . . Kills 18 | . . 2 . . 4 12 . . . . . . Allies Corrupted . | . . . . . . . . . . . . . Allies Melted . | . . . . . . . . . . . . . Intel | -11 -10 -10 -10 -9 -8 -8 -7 -7 -7 -7 -7 -7 ------- Run | Scr Mat Min Exi Min Mat Sto Fac Was Fac Low Low Zio Robot Analysis Total . | . . . . . . . . . . . . . Derelict Logs Recovered 6 | . . 2 . 1 . . . . . 1 2 . Drone Launches . | . . . . . . . . . . . . . Drone Recoveries . | . . . . . . . . . . . . . Exploration | -11 -10 -10 -10 -9 -8 -8 -7 -7 -7 -7 -7 -7 ------------- Run | Scr Mat Min Exi Min Mat Sto Fac Was Fac Low Low Zio Turns Passed 11605 | 117 315 498 222 303 1544 1599 701 351 2024 1234 989 1708 Spaces Moved 6100 | 72 237 370 180 174 767 507 351 194 1320 627 489 812 Core 202 | 1 . . . . . . . 132 69 . . . Treads 3238 | . . . . . 190 507 351 62 200 627 489 812 Legs . | . . . . . . . . . . . . . Wheels 2660 | 71 237 370 180 174 577 . . . 1051 . . . Hover . | . . . . . . . . . . . . . Flight . | . . . . . . . . . . . . . Fastest Speed 50 | 50 100 100 110 140 140 175 180 50 100 160 180 160 Average Speed 149 | 99 100 107 119 140 155 176 180 115 116 179 180 179 Slowest Speed 250 | 100 100 110 140 140 175 183 180 250 160 180 180 180 Overloaded Moves . | . . . . . . . . . . . . . Propulsion Burnouts . | . . . . . . . . . . . . . Robots Hopped . | . . . . . . . . . . . . . Cave-ins Triggered . | . . . . . . . . . . . . . Exploration Rate (%) 51 | 5 28 79 54 47 50 79 12 73 34 80 44 89 Regions Visited 12 Branch Regions 7 Pre-discovered Areas 6 | . . 1 1 . 1 1 . . . 1 . 1 Known Exits Taken 3 | . . . . . 1 1 . . 1 . . . Unknown Exits Taken 7 | 1 1 1 1 1 . . . . . 1 1 . Scrap Searched 15 | . . 1 . 4 . . . . . 5 3 2 Spaces Dug 103 | . . . . . . 8 . . 33 62 . . Terrain Destroyed 279 | . . . . . 21 26 . . 33 68 128 3 Melee 33 | . . . . . . . . . 33 . . . Projectile 9 | . . . . . . . . . . 8 1 . AOE 237 | . . . . . 21 26 . . . 60 127 3 Actions | -11 -10 -10 -10 -9 -8 -8 -7 -7 -7 -7 -7 -7 --------- Run | Scr Mat Min Exi Min Mat Sto Fac Was Fac Low Low Zio Total 7706 | 94 274 434 188 203 1020 999 408 260 1643 685 542 956 Wait 700 | . 7 22 2 2 131 342 39 14 108 . 8 25 Move 6089 | 71 236 369 179 173 766 506 351 193 1319 626 488 812 Hop . | . . . . . . . . . . . . . Pick Up 100 | 4 3 8 . 5 20 11 6 2 16 16 2 7 Fast Attach 84 | 7 . 2 . . 12 8 . 6 25 5 5 14 Attach 38 | . 1 . . . 10 7 3 4 5 . 3 5 Detach 28 | . . . . . 6 6 . 2 8 2 . 4 Swap 62 | . 2 3 4 2 10 13 4 1 3 7 7 6 Drop 82 | . . 7 3 2 18 11 . 7 15 3 3 13 Fire 379 | 12 25 23 . 19 47 87 5 31 8 26 26 70 Melee 140 | . . . . . . 4 . . 136 . . . Ram . | . . . . . . . . . . . . . Kick . | . . . . . . . . . . . . . Crush 2 | . . . . . . 2 . . . . . . Escape Stasis 2 | . . . . . . 2 . . . . . . Rewire . | . . . . . . . . . . . . . Trap . | . . . . . . . . . . . . . Miscellaneous . | . . . . . . . . . . . . . Route ------- -11/Scrapyard -10/Materials -10/Mines (discovered 2 exits: [*Mat] / *Exi) -10/Exiles -9/Mines -8/Materials (discovered 2 exits: *Fac / *Sto) -8/Storage -7/Factory -7/Waste -7/Factory (discovered 3 exits: [*Fac] / *Low x2) -7/Lower Caves -7/Lower Caves -7/Zion (discovered 1 exit: [*Pro]) History --------- Turn | Location | Event 22 | -11/Scrapyard | Discovered new exit (range 16) 118 | -11/Scrapyard | Entered Materials 304 | -10/Materials | Build established: Mutant 334 | -10/Materials | Discovered new exit (range 10) 433 | -10/Materials | Entered Mines 451 | -10/Mines | Assisted by bots powering up and referring to "LRC-V3" 455 | -10/Mines | Met a Derelict bent on vengeance 515 | -10/Mines | Learned Materials emergency access door positions 531 | -10/Mines | Discovered new exit (range 14) 640 | -10/Mines | Found a damaged Exp. Sensor Array with a note attached 645 | -10/Mines | Found Prototype Device 688 | -10/Mines | Learned location of Storage (-8) 805 | -10/Mines | Assisted by bots powering up and referring to "LRC-V3" 862 | -10/Mines | Destroyed YI-UF0 873 | -10/Mines | Found Prototype Storage 873 | -10/Mines | Identified YI-UF0's Bottomless Matter Pit 881 | -10/Mines | Found Prototype Launcher 917 | -10/Mines | Deemed a non-threat by the Exiles lab entrance 918 | -10/Mines | Discovered new exit (range 5) 931 | -10/Mines | Entered Exiles 931 | -10/Exiles | Accompanied by 3 allies 959 | -10/Exiles | Met 8R-AWN 977 | -10/Exiles | Met EX-HEX 1045 | -10/Exiles | Met EX-DEC 1066 | -10/Exiles | Learned location of Zion (-7) 1133 | -10/Exiles | Discovered new exit (range 14) 1153 | -10/Exiles | Entered Mines 1153 | -9/Mines | Accompanied by 3 allies 1381 | -9/Mines | Discovered new exit (range 10) 1385 | -9/Mines | Learned 2 Materials zone layouts 1390 | -9/Mines | Core integrity fell below 50% 1416 | -9/Mines | Build established: Hauler-Mutant 1456 | -9/Mines | Entered Materials 1456 | -8/Materials | Evolved 4 slots: Propulsion x1, Utility x3 1457 | -8/Materials | Identified exit to Storage 1725 | -8/Materials | Identified YI-UF0's Doublenader 2169 | -8/Materials | Garrison activated, responded to threat 2217 | -8/Materials | Lost 3 parts (1n1u1w) 2554 | -8/Materials | Identified Exp. Sensor Array 2557 | -8/Materials | Discovered new exit (range 14) 3000 | -8/Materials | Entered Storage 3549 | -8/Storage | Repaired Broken Exp. Sensor Array 3709 | -8/Storage | Assisted by bots powering up and referring to "LRC-V3" 3800 | -8/Storage | First assault squad dispatched 4388 | -8/Storage | Repaired Lgt. Treads 4416 | -8/Storage | Repaired Lgt. Treads 4496 | -8/Storage | Discovered new exit (range 8) 4511 | -8/Storage | Met a pair of Derelict thieves 4597 | -8/Storage | Identified exit to Factory 4599 | -8/Storage | Entered Factory 4599 | -7/Factory | Evolved 2 slots: Utility x2 5300 | -7/Factory | Sucked down chute 5300 | -7/Factory | Entered Waste 5327 | -7/Waste | Destroyed C-40 Crusher 5346 | -7/Waste | Destroyed C-40 Crusher 5369 | -7/Waste | Destroyed C-40 Crusher 5445 | -7/Waste | Spotted C-40 Crusher 5453 | -7/Waste | Spotted C-40 Crusher 5495 | -7/Waste | Crushed by Compactor (0 parts destroyed, 1 dropped) 5498 | -7/Waste | Crushed by Compactor (0 parts destroyed, 2 dropped) 5501 | -7/Waste | Crushed by Compactor (0 parts destroyed, 1 dropped) 5504 | -7/Waste | Crushed by Compactor (1 part destroyed, 1 dropped) 5510 | -7/Waste | Crushed by Compactor (1 part destroyed) 5513 | -7/Waste | Crushed by Compactor (1 part destroyed, 1 dropped) 5515 | -7/Waste | Spotted C-40 Crusher 5516 | -7/Waste | Crushed by Compactor (0 parts destroyed, 1 dropped) 5544 | -7/Waste | Lost 4 parts (2u2w) 5638 | -7/Waste | Discovered new exit (range 13) 5650 | -7/Waste | Identified exit to Factory 5651 | -7/Waste | Entered Factory 5798 | -7/Factory | Build established: Mutant 5987 | -7/Factory | Found Prototype Launcher 5987 | -7/Factory | Identified Rocket Array 6195 | -7/Factory | Build established: Scavenger-Mutant 6589 | -7/Factory | Identified exit to Lower Caves 6772 | -7/Factory | Lost 3 parts (1p1n1w) 6802 | -7/Factory | Discovered new exit (range 17) 6958 | -7/Factory | Fabricated Exp. Sensor Array? 6965 | -7/Factory | Fabricated Hvy. Treads (x2) 7037 | -7/Factory | Local fabrication network quarantined 7251 | -7/Factory | First assault squad dispatched 7477 | -7/Factory | Core integrity fell below 50% 7506 | -7/Factory | Repaired Enh. Gauss Cannon 7675 | -7/Factory | Entered Lower Caves 7797 | -7/Lower Caves | Spotted B-75 Beast 7934 | -7/Lower Caves | Encountered a Warlord checkpoint 8222 | -7/Lower Caves | Build established: Hauler-Mutant 8524 | -7/Lower Caves | Discovered new exit (range 6) 8909 | -7/Lower Caves | Entered another Lower Caves area 9321 | -7/Lower Caves | Discovered new exit (range 11) 9348 | -7/Lower Caves | Build established: Derelict-Mutant 9543 | -7/Lower Caves | Ambushed by wild Derelicts 9617 | -7/Lower Caves | Lost 3 parts (1p2u) 9887 | -7/Lower Caves | Build established: Scavenger-Mutant 9898 | -7/Lower Caves | Entered Zion 9961 | -7/Zion | System corruption cleaned by Quarantine Array 10033 | -7/Zion | Discovered new exit (range 12) 10404 | -7/Zion | Learned Factory emergency access door positions 10519 | -7/Zion | Learned location of Data Miner (-6) 10865 | -7/Zion | Found Prototype Processor 10865 | -7/Zion | Identified Exp. Core Analyzer 10872 | -7/Zion | Found Prototype Processor 10872 | -7/Zion | Identified Exp. Targeting Computer 11126 | -7/Zion | Attacked by Zionites 11190 | -7/Zion | Build established: Hauler-Mutant 11519 | -7/Zion | 12-ASH came to Zion's defense 11541 | -7/Zion | Core integrity fell below 20% 11575 | -7/Zion | Destroyed 12-ASH 11586 | -7/Zion | Lost 5 parts (2u3w) 11606 | -7/Zion | Destroyed by MG-SMA(z) with Makeshift Shrapnel Gun Last Messages --------------- 11561_ Slug penetrates 0A-WKD(z). 11561_ 0A-WKD(z) destroyed. 11565_ 12-ASH knocked back. 11566_ 12-ASH suffers critical hit. 11566_ Destroyed Prototype Ballistic Gun. 11572_ Destroyed Lgt. Antimatter Reactor. 11572_ 12-ASH knocked back. 11573_ 12-ASH suffers critical hit. 11573_ Destroyed Prototype Leg. 11573_ 12-ASH knocked back. 11575_ 12-ASH destroyed. 11580_ Acquired Plasma Cannon. 11585_ Extracted 273 matter. 11586_ Acquired YI-UF0's Bottomless Matter Pit. 11595_ Acquired 20 matter. 11600_ MG-SMA(z) pulls a Mak. Shrapnel Gun out of the Twisted Machinery. 11601_ 3F-KXE(z) pulls a Mak. Laser out of the Twisted Machinery. 11604_ 3F-KXE(z) destroyed. 11604_ Hvy. Treads destroyed. 11604_ YI-UF0's Bottomless Matter Pit destroyed. Map ----- +----------------------------------------------------+ | ?????????????????#""""#??????????????????????##!#" | | ?????????????????#""""#??????????????????????#! ! | | ?????????????????#""" #????####??????????????##[! | | ????????#######??# X ######""#???????????????##!! | | ????????#"#"#"#### ""##"#""##?????????????##" # | | ???????##""""""""" """"""""#?????????????#"# " | | ??????##"""""" "" "" "##???????????## | | #######""" "" """#?????????###" " | | #""#"###" """ """"#?????????#""""""" | | """"""""" """""" """###????????#"""" | | ""###""" ""#"##???????#"" | | """##""" ""#"##?#######" | | """" ""##""" " """"###""""""" | | "#" "#""" "" """#"""""""" | | "" """ """" ""#"" """ | | "" "" """"" "" """" | | "" """"" """ """" | | "" """"" """"" """ """"" """ | | """ "##""" """""" "" """""""" """""" | | """ ""#""""" ""#"" " """"""" """""" | | * """"""""" "" "" """#" "" | | ""! """""" "" = """ """ " "" "" | | """" "" "" * " %= """ "" | | " = z " | | /[ % !% =%* | | ! = * = @ /% | | " % "; "" """ | | """" ! !! " """ " """"""""" """ | | """" " " """""""""#""##"#" | | #"" """ " """###"""#####"" """ | | #""" "" "" """"##?##"##???##" """ | | """ "" """" """###???###????#"" "" | | /% = * ""##"" """"""#????????????#" | | * * %= ""###"""""##"##????????????#" """ | | [ ""##?###"""####?????????????#" """ | | " !%= ""#????###"#?????????###?####" #"" | | """" * "#??????###??????????"!!? " """ | | """"" ##???????????????????? !## "" """ | | """"" ""#???????????????????? "" """ | | ""#" ""#????????????????????? " | | """" """?????????????????????## | | """" "" """?????????????????????# """ | | " "" ""????????????????????##" """ | | "" " "" ""????????????????????#""" ""# | | "" " """#?????????????????????##" """ | | " " " "###????????????????????##""" " | | " " """""#??????????????????????#"""" | | "" " """####??????????????????????#"#"" | | """ " #""#?????????????????????????##""" | | """ """???????????????????????????#"" | +----------------------------------------------------+ Best States ------------- Heat Dissipation 76 Energy Generation 21 Energy Capacity 590 Matter Stores 1237 Matter Capacity 1800 Sight Range 23 Robot Scan Range 30 Terrain Scan Density 10 Jamming Range 8 Armor Coverage 750 Core Shielding 20 Propulsion Shielding 66 Weapon Cycling 15 Melee Speed Boost 40 Evasion (%) 50 Targeting Accuracy 16 Target Analysis 5 Core Analysis 15 Armor Integrity Analysis 33 Recoil Reduction 3 Kinecelleration 30 Salvage Targeting 2 Offensive Hacking 10 Defensive Hacking 10 Item Schematics ----------------- Exp. Sensor Array | -8/Materials | Scanalyzed Hvy. Treads | -7/Factory | Scanalyzed Enh. Gauss Cannon | -7/Factory | Scanalyzed Battle Rifle | -7/Zion | Free Battle Cannon | -7/Zion | Free Flamer | -7/Zion | Free Ripper | -7/Zion | Free Robot Schematics ------------------ None Fabricated ------------ Exp. Sensor Array | x1 | -7/Factory Hvy. Treads | x2 | -7/Factory Alien Tech Used ----------------- None Achievements -------------- None Challenges ------------ None Game ------ Seed RemoteLinkedSabre Manual? 0 Play Time 01:09:04 Cumulative 515.7 hours Start 2020.05.06 @ 03:16:29 End 2020.05.06 @ 04:25:53 Sessions 1 Manual Loads 0 Difficulty Rogue Special Mode None Game No. 397 Rogue 393 Adventurer 4 Explorer 0 Win Type - Total 58 Types 50/3/1/2/2/0/0 Lore% 94 Gallery% 96 Achievement% 96 Wizard Run 0 Options --------- ASCII 0 Keyboard 0 Movement Vi Keybinds 0 Fullscreen 0 Font 16/Terminus Map View 76x50 Tactical HUD 1 Map Filters NONE Filters NONE Steam 1 RUN: d9d4875b-948e-4bee-8de8-4849300cf6b1